Workbook

Sheet Instructions
F1: Travel Expense Statement - Instructions
A2: This form should be completed by any agency that is not using the Concur Travel and Expense Management System. Use the Per Diem Calculator Tool (included with this form) to determine the total meal allowance due to the traveler (if applicable).
A4: Section 1: Expense Submitter & Preparer Information
A6: Agency & Traveler Name | C6: Enter the expense submitter's agency name and in the appropriate field enter the Traveler's name
A8: Employee ID# | C8: Enter expense submitter's employee ID #
A10: Home Address | C10: Enter the expense submitter's street address
A12: City, State, Zip | C12: Enter the expense submitter's home city, state, and zip
A14: Office Phone: | C14: Enter expense submitter's phone number
A16: Email Address: | C16: Enter expense submitter's email address
A18: Type of Travel: | C18: Select dropdown box for: In State, Out of State, or International Travel
A20: Travel To Date: | C20: Enter first date of the trip
A22: Travel From Date: | C22: Enter last date of trip
A24: Departure & Return Time: | C24: Enter the time you left on the first day of your trip and the time you returned on the last day of your trip
A25: Section 2: Record of Expenses | C25: This section summarizes the Travel Expenses from page 2, the Mileage Expenses from page 3, and the M&IE Per diem amount calculated with the Per diem Calculator Tool on page 4.
A27: Date | C27: Write out the date in the MM/DD/YY format
A29: Per Diem | C29: For the First and Last Day, check the box in the per diem field (Only 75% of Per Diem Eligible for Reimbursement on the First and Last Day
C30: of an authorized trip. Also, note that when a meal is provided the eligible reimbursable per diem is reduced by the amount allocated for that
C31: particular meal at the 100% rate -- this is a State Policy).
A33: Total Expenses | C33: The sum of the expenses in the Amount column will total here
A34: Travel Advance | C34: If the expense submitter obtained a travel advance prior to the trip, enter the amount of the advance
A36: Due TO/FROM the Expense Submitter | C36: If the expenses were greater than the total of the advances, the net amount owed TO the expense submitter will total here. If the advances were greater than the expense amount, the net amount due FROM the expense submitter will total here. If the expense submitter owes the State money, please attach a personal check to the expense report
A38: Section 3: Certification and Attestation
A40: Traveler Signature | C40: Enter the name of the traveler
A42: Approver Signatures | C42: Note: The individual/s below who approve the Travel and Expense Statement are certifying the following: * Appropriateness of the expenditure and reasonableness of the amount * Availability of funds * Compliance with Statewide Travel Regulations * Completeness of documentation and accuracy
A45: Page 2 - Itemized Travel Expenses
A47: Purpose of Trip/Event | C47: Clearly state the business purpose of the trip or event; include the conference name if applicable
A49: Record of Travel Expenses | C49: Itemize all expenses by date and type. An original receipt is required for any item $25 or greater. Original receipts are also required for all lodging and airline expenses, regardless of amount.
A51: Common Carrier, Etc… | C51: Enter amount of any commercial transportation used during a trip (Receipts are required) Other expenses charged to this account include parking, taxes, and tolls
A53: Miscellaneous Expenses | C53: Use this space to include expenses that do not apply to any of the above categories. List the date and provide a description of the expense. Attach an additional sheet if necessary.
A56: Page 3 - Personal Vehicle Mileage
A58: Traveler Name | C58: Enter the name of the employee: last name, first name, middle initial
A60: Date | C60: Enter date of the traveler's departure
A62: Origin | C62: Enter location where the trip began
A64: Destination | C64: Enter final destination of business trip
A66: Business Miles | C66: Enter total business miles for the travel
A68: Commute Miles | C68: Enter total commute miles for the travel (Miles from home to work location)
A70: Personal Miles | C70: Enter any personal miles that occurred during the travel
A72: State Use Miles | C72: State use miles will automatically calculate (deducting any commute miles and personal miles)
A73: Mileage Rate | C73: Verify that correct mileage rate populated. Total State use miles will automatically populate in Page 1 of the expense report.
A75: Motor Pool | C75: Mark the box if motor pool vehicle was used
A77: Shared Transportation | C77: Enter names of individuals that rode with the traveler

Sheet Page1 - Expense Report
H1: DOMESTIC
A2: Section 1: Expense Submitter and Personal Information
A4: Agency: | D4: Savannah State University | J4: Type of Travel | U4: In State
A5: Traveler's Name: | J5: From Date: MM/DD/YY | U5: Out of State
A6: Employee ID #: | J6: To Date: MM/DD/YY | U6: International
A7: Home Address: | J7: Departure Time:
A8: City, State, Zip: | J8: Return Time:
A9: Office Phone: | J9: Travel Destination: | L9: GA, Athens
A10: Email Address: | J10: If Other, Specify
A13: Section 2: Record of Expenses
A14: Daily Per Diem: | B14: =VLOOKUP(L9,Table1[#All],6,FALSE) -> 50 | E14: In-State: $28.00, High Cost Areas $36.00 (Cobb, DeKalb, Fulton, Glynn, and Richmond Counties); For Out-of-State Per Diems, refer to www.gsa.gov, and deduct Incidentals ($5.00/Day)
A15: þ First & Last Day, Please Check Box in Per Diem Column | I15: þ For Provided Meals, Please Check Box
A16: Date: (Ex: 10/01/2012) | E16: Per Diem | G16: Location | I16: Breakfast | J16: Lunch | K16: Dinner | L16: Lodging | M16: Amount | O16: Per Diem | P16: Is Blank A17 | Q16: B | R16: L | S16: D
A17: =IF(ISBLANK(L5),"",SUM(L5)) ->  | E17: =IF(COUNTBLANK(A17),"",IF(O17=TRUE,$B$14*0.75,$B$14)) ->  | G17: =IF(COUNTBLANK(A17)=1,"",IF(ISBLANK($B$14),"",IF($B$14=0,"",$L$9))) ->  | I17: =IF($E$17="","",IF(Q17=TRUE,SUM(VLOOKUP($E$17,'per diem tables'!$A$2:$D$18,2,FALSE)*-1),"")) ->  | J17: =IF($E$17="","",IF(R17=TRUE,SUM(VLOOKUP($E$17,'per diem tables'!$A$2:$D$18,3,FALSE)*-1),"")) ->  | K17: =IF($E$17="","",IF(S17=TRUE,SUM(VLOOKUP($E$17,'per diem tables'!$A$2:$D$18,4,FALSE)*-1),"")) ->  | M17: =IF(COUNTBLANK(E17),"",E17+SUM(I17:K17)+L17) ->  | O17: FALSE | P17: =ISBLANK(A17) -> FALSE | Q17: FALSE | R17: FALSE | S17: FALSE
A18: =IF(A17<$L$6,A17+1,"") ->  | E18: =IF(COUNTBLANK(A18),"",IF(O18=TRUE,$B$14*0.75,$B$14)) ->  | I18: =IF($E$17="","",IF(Q18=TRUE,SUM(VLOOKUP($E$18,'per diem tables'!$A$2:$D$18,2,FALSE)*-1),"")) ->  | J18: =IF($E$17="","",IF(R18=TRUE,SUM(VLOOKUP($E$18,'per diem tables'!$A$2:$D$18,3,FALSE)*-1),"")) ->  | K18: =IF($E$17="","",IF(S18=TRUE,SUM(VLOOKUP($E$18,'per diem tables'!$A$2:$D$18,4,FALSE)*-1),"")) ->  | M18: =IF(COUNTBLANK(E18),"",E18+SUM(I18:K18)+L18) ->  | O18: FALSE | P18: =ISBLANK(A18) -> FALSE | Q18: FALSE | R18: FALSE | S18: FALSE
A19: =IF(A18<$L$6,A18+1,"") ->  | I19: =IF($E$17="","",IF(Q19=TRUE,SUM(VLOOKUP($E$19,'per diem tables'!$A$2:$D$18,2,FALSE)*-1),"")) ->  | J19: =IF($E$17="","",IF(R19=TRUE,SUM(VLOOKUP($E$19,'per diem tables'!$A$2:$D$18,3,FALSE)*-1),"")) ->  | K19: =IF($E$17="","",IF(S19=TRUE,SUM(VLOOKUP($E$19,'per diem tables'!$A$2:$D$18,4,FALSE)*-1),"")) ->  | O19: FALSE | P19: FALSE | Q19: FALSE | R19: FALSE | S19: FALSE
I20: =IF($E$17="","",IF(Q20=TRUE,SUM(VLOOKUP($E$20,'per diem tables'!$A$2:$D$18,2,FALSE)*-1),"")) ->  | J20: =IF($E$17="","",IF(R20=TRUE,SUM(VLOOKUP($E$20,'per diem tables'!$A$2:$D$18,3,FALSE)*-1),"")) ->  | K20: =IF($E$17="","",IF(S20=TRUE,SUM(VLOOKUP($E$20,'per diem tables'!$A$2:$D$18,4,FALSE)*-1),"")) ->  | O20: FALSE | P20: FALSE | Q20: FALSE | R20: FALSE | S20: FALSE
E21: =IF(COUNTBLANK(A21),"",IF(O21=TRUE,$B$14*0.75,$B$14)) ->  | I21: =IF($E$17="","",IF(Q21=TRUE,SUM(VLOOKUP($E$21,'per diem tables'!$A$2:$D$18,2,FALSE)*-1),"")) ->  | J21: =IF($E$17="","",IF(R21=TRUE,SUM(VLOOKUP($E$21,'per diem tables'!$A$2:$D$18,3,FALSE)*-1),"")) ->  | K21: =IF($E$17="","",IF(S21=TRUE,SUM(VLOOKUP($E$21,'per diem tables'!$A$2:$D$18,4,FALSE)*-1),"")) ->  | O21: FALSE | P21: FALSE | Q21: FALSE | R21: FALSE | S21: FALSE
I22: =IF($E$17="","",IF(Q22=TRUE,SUM(VLOOKUP($E$22,'per diem tables'!$A$2:$D$18,2,FALSE)*-1),"")) ->  | J22: =IF($E$17="","",IF(R22=TRUE,SUM(VLOOKUP($E$22,'per diem tables'!$A$2:$D$18,3,FALSE)*-1),"")) ->  | K22: =IF($E$17="","",IF(S22=TRUE,SUM(VLOOKUP($E$22,'per diem tables'!$A$2:$D$18,4,FALSE)*-1),"")) ->  | O22: FALSE | P22: FALSE | Q22: FALSE | R22: FALSE | S22: FALSE
I23: =IF($E$17="","",IF(Q23=TRUE,SUM(VLOOKUP($E$23,'per diem tables'!$A$2:$D$18,2,FALSE)*-1),"")) ->  | J23: =IF($E$17="","",IF(R23=TRUE,SUM(VLOOKUP($E$23,'per diem tables'!$A$2:$D$18,3,FALSE)*-1),"")) ->  | K23: =IF($E$17="","",IF(S23=TRUE,SUM(VLOOKUP($E$23,'per diem tables'!$A$2:$D$18,4,FALSE)*-1),"")) ->  | O23: FALSE | P23: FALSE | Q23: FALSE | R23: FALSE | S23: FALSE
I24: =IF($E$17="","",IF(Q24=TRUE,SUM(VLOOKUP($E$24,'per diem tables'!$A$2:$D$18,2,FALSE)*-1),"")) ->  | J24: =IF($E$17="","",IF(R24=TRUE,SUM(VLOOKUP($E$24,'per diem tables'!$A$2:$D$18,3,FALSE)*-1),"")) ->  | K24: =IF($E$17="","",IF(S24=TRUE,SUM(VLOOKUP($E$24,'per diem tables'!$A$2:$D$18,4,FALSE)*-1),"")) ->  | O24: FALSE | P24: FALSE | Q24: FALSE | R24: FALSE | S24: FALSE
I25: =IF($E$17="","",IF(Q25=TRUE,SUM(VLOOKUP($E$25,'per diem tables'!$A$2:$D$18,2,FALSE)*-1),"")) ->  | J25: =IF($E$17="","",IF(R25=TRUE,SUM(VLOOKUP($E$25,'per diem tables'!$A$2:$D$18,3,FALSE)*-1),"")) ->  | K25: =IF($E$17="","",IF(S25=TRUE,SUM(VLOOKUP($E$25,'per diem tables'!$A$2:$D$18,4,FALSE)*-1),"")) ->  | O25: FALSE | P25: FALSE | Q25: FALSE | R25: FALSE | S25: FALSE
I26: =IF($E$17="","",IF(Q26=TRUE,SUM(VLOOKUP($E$26,'per diem tables'!$A$2:$D$18,2,FALSE)*-1),"")) ->  | J26: =IF($E$17="","",IF(R26=TRUE,SUM(VLOOKUP($E$26,'per diem tables'!$A$2:$D$18,3,FALSE)*-1),"")) ->  | K26: =IF($E$17="","",IF(S26=TRUE,SUM(VLOOKUP($E$26,'per diem tables'!$A$2:$D$18,4,FALSE)*-1),"")) ->  | O26: FALSE | P26: FALSE | Q26: FALSE | R26: FALSE | S26: FALSE
I27: =IF($E$17="","",IF(Q27=TRUE,SUM(VLOOKUP($E$27,'per diem tables'!$A$2:$D$18,2,FALSE)*-1),"")) ->  | J27: =IF($E$17="","",IF(R27=TRUE,SUM(VLOOKUP($E$27,'per diem tables'!$A$2:$D$18,3,FALSE)*-1),"")) ->  | K27: =IF($E$17="","",IF(S27=TRUE,SUM(VLOOKUP($E$27,'per diem tables'!$A$2:$D$18,4,FALSE)*-1),"")) ->  | O27: FALSE | P27: FALSE | Q27: FALSE | R27: FALSE | S27: FALSE
A28: Explain Any Unusual Amounts for Subsistence: | H28: Amount by Column | I28: =SUM(I17:I27) -> 0 | J28: =SUM(J17:J27) -> 0 | K28: 0 | L28: 0
L29: TOTAL | M29: =SUM(M17:M28) -> 0
A31: State Use Miles: Over 50 Miles Within 50 Mile Radius | H31: Rate | I31: =IF(O31=TRUE,0.585,IF(P31=TRUE,0.18,"")) ->  | J31: Total Miles | K31: ='Page 2 - Travel Expenses'!I23 -> 0 | M31: =IF(COUNTBLANK(I31),"",I31*K31) ->  | O31: FALSE | P31: FALSE
A32: Common Carrier / Limousine (Explain in Section on Page 2) | M32: ='Page 2 - Travel Expenses'!I40 -> 0
A33: Miscellaneous Expenses (Explain in Section on Page 2) | M33: ='Page 2 - Travel Expenses'!I47 -> 0
A34: TOTAL TRAVEL EXPENSE | M34: =SUM(M29:M33) -> 0
A35: Travel Advance V#: | F35: ← Enter Cash Advance #, if applicable
A36: Due TO/FROM Expense Submitter: | M36: =M34-M35 -> 0
A38: Section 3: Certification and Attestation
A39: I do solemnly swear, under criminal penalty of a felony for false statements subject to punishment by fine of not more than $1,000 or by imprisonment of not less than one nor more than five years, that the above statements are true and I have incurred the described expenses and the state use mileage in the discharge of my official duties of the state."
A41: Traveler Signature: | M41: Date
A43: Supervisor Signature | M43: Date
A45: Budget Unit Head Signature: | M45: Date
A47: Title III Signature (if applicable): | M47: Date

Sheet Page 2 - Travel Expenses
F1: Itemized Travel Expenses
A4: Traveler Name: | B4: ='Page1 - Expense Report'!D5 -> 0 | D4: GA License Plate Number: | T4: YES | V4: Automobile
C6: Select type of personal vehicle: | F6: Automobile
A7: Date | B7: Origin | C7: Destination | D7: Odometer Readings (Optional) | G7: Commute Miles | H7: Personal Miles | I7: State Use Miles
D8: Starting | E8: Ending | F8: Total Miles
F9: =E9-D9 -> 0 | I9: =+F9-G9-H9 -> 0
F10: 0 | I10: =+F10-G10-H10 -> 0
F11: 0 | I11: 0
F12: 0 | I12: 0
F13: 0 | I13: 0
F14: 0 | I14: 0
F15: 0 | I15: 0
F16: 0 | I16: 0
F17: 0 | I17: 0
F18: 0 | I18: 0
F19: 0 | I19: 0
F20: 0 | I20: 0
F21: 0 | I21: 0
F22: 0 | I22: 0
A23: Indicate use of motor pool vehicle or shared transportation: | G23: Total State Use Miles | I23: =SUM(I9:I22) -> 0
A25: Motor Pool Vehicle was used for travel
A26: Person(s) traveled with:
A28: Purpose of the Trip:
A31: All reimbursable expenses must be listed and appropriate original receipts attached.
A32: Date | B32: Commercial Transportation (Including Parking, Taxi, Tolls) | I32: Amount
A40: TOTAL COMMON CARRIER, ETC… | I40: =SUM(I34:I39) -> 0
A41: Date | B41: Miscellaneous Expenses | I41: Amount
A47: TOTAL MISCELLANEOUS | I47: =SUM(I42:I46) -> 0
A48: Note: Please be sure to attach all necessary receipts, indicate travel start time on the departure date and the travel return time on the return date, and to
A49: attach program agendas (conference schedule), if applicable.

Sheet per diem tables (hidden)
A1: Domestic
A2: M&IE Total | B2: Breakfast | C2: Lunch | D2: Dinner | E2: Incidentals | F2: Column1
A3: =SUM(Table2[[#This Row],[Breakfast]:[Dinner]]) -> 50 | B3: 13 | C3: 14 | D3: 23 | E3: 0
A4: =A3*0.75 -> 37.5 | B4: =B3*0.75 -> 9.75 | C4: 10.5 | D4: 17.25 | E4: 0
A5: =SUM(Table2[[#This Row],[Breakfast]:[Dinner]]) -> 54 | B5: 13 | C5: 15 | D5: 26 | E5: 0
A6: =A5*0.75 -> 40.5 | B6: =B5*0.75 -> 9.75 | C6: =C5*0.75 -> 11.25 | D6: 19.5 | E6: 0
A7: =SUM(Table2[[#This Row],[Breakfast]:[Dinner]]) -> 59 | B7: 14 | C7: 16 | D7: 29 | E7: 0
A8: =A7*0.75 -> 44.25 | B8: =B7*0.75 -> 10.5 | C8: =C7*0.75 -> 12 | D8: =D7*0.75 -> 21.75 | E8: 0
A9: =SUM(Table2[[#This Row],[Breakfast]:[Dinner]]) -> 64 | B9: 16 | C9: 17 | D9: 31 | E9: 0
A10: =A9*0.75 -> 48 | B10: =B9*0.75 -> 12 | C10: =C9*0.75 -> 12.75 | D10: =D9*0.75 -> 23.25 | E10: 0
A11: =SUM(Table2[[#This Row],[Breakfast]:[Dinner]]) -> 69 | B11: 17 | C11: 18 | D11: 34 | E11: 0
A12: =A11*0.75 -> 51.75 | B12: =B11*0.75 -> 12.75 | C12: =C11*0.75 -> 13.5 | D12: =D11*0.75 -> 25.5 | E12: 0
A13: =SUM(Table2[[#This Row],[Breakfast]:[Dinner]]) -> 74 | B13: 18 | C13: 20 | D13: 36 | E13: 0
A14: =A13*0.75 -> 55.5 | B14: =B13*0.75 -> 13.5 | C14: =C13*0.75 -> 15 | D14: =D13*0.75 -> 27 | E14: 0
A15: =SUM(Table2[[#This Row],[Breakfast]:[Dinner]]) -> 79 | B15: 19 | C15: 22 | D15: 38 | E15: 0
A16: =A15*0.75 -> 59.25 | B16: =B15*0.75 -> 14.25 | C16: =C15*0.75 -> 16.5 | D16: =D15*0.75 -> 28.5 | E16: 0
A17: =SUM(Table2[[#This Row],[Breakfast]:[Dinner]]) -> 84 | B17: 20 | C17: 24 | D17: 40 | E17: 0
A18: =A17*0.75 -> 63 | B18: =B17*0.75 -> 15 | C18: =C17*0.75 -> 18 | D18: =D17*0.75 -> 30 | E18: 0

Sheet Cities (hidden)
A1: FY2022 Per Diem Rates - Effective February 1, 2022 | F1: Less Incidentals
A2: City,State | B2: DESTINATION CITY | C2: DESTINATION STATE | D2: COUNTY | E2: FY22 Meals | F2: SSU Meals
A3: =CONCATENATE(C3,", ",B3) -> AL, Birmingham | B3: Birmingham | C3: AL | D3: Jefferson | E3: 69 | F3: =E3-5 -> 64
A4: AL, Gulf Shores | B4: Gulf Shores | C4: AL | D4: Baldwin | E4: 69 | F4: 64
A5: AL, Mobile | B5: Mobile | C5: AL | D5: Mobile | E5: 59 | F5: 54
A6: =CONCATENATE(C6,", ",B6) -> AL, Other | B6: Other | C6: AL | D6: AL, Other | E6: 59 | F6: =E6-5 -> 54
A7: AR, Hot Springs | B7: Hot Springs | C7: AR | D7: Garland | E7: 64 | F7: 59
A8: =CONCATENATE(C8,", ",B8) -> AR, Other | B8: Other | C8: AR | D8: AR, Other | E8: 59 | F8: =E8-5 -> 54
A9: AZ, Grand Canyon / Flagstaff | B9: Grand Canyon / Flagstaff | C9: AZ | D9: Coconino / Yavapai less the city of Sedona | E9: 74 | F9: 69
A10: =CONCATENATE(C10,", ",B10) -> AZ, Kayenta | B10: Kayenta | C10: AZ | D10: Navajo | E10: 64 | F10: =E10-5 -> 59
A11: AZ, Phoenix / Scottsdale | B11: Phoenix / Scottsdale | C11: AZ | D11: Maricopa | E11: 69 | F11: 64
A12: AZ, Sedona | B12: Sedona | C12: AZ | D12: City Limits of Sedona | E12: 79 | F12: 74
A13: AZ, Tucson | B13: Tucson | C13: AZ | D13: Pima | E13: 64 | F13: 59
A14: =CONCATENATE(C14,", ",B14) -> AZ, Other | B14: Other | C14: AZ | D14: AZ, Other | E14: 59 | F14: =E14-5 -> 54
A15: CA, Antioch / Brentwood / Concord | B15: Antioch / Brentwood / Concord | C15: CA | D15: Contra Costa | E15: 74 | F15: 69
A16: CA, Bakersfield / Ridgecrest | B16: Bakersfield / Ridgecrest | C16: CA | D16: Kern | E16: 64 | F16: 59
A17: CA, Barstow / Ontario / Victorville | B17: Barstow / Ontario / Victorville | C17: CA | D17: San Bernardino | E17: 64 | F17: 59
A18: CA, Death Valley | B18: Death Valley | C18: CA | D18: Inyo / NAWS China Lake | E18: 69 | F18: 64
A19: CA, Eureka / Arcata / McKinleyville | B19: Eureka / Arcata / McKinleyville | C19: CA | D19: Humboldt | E19: 69 | F19: 64
A20: CA, Fresno | B20: Fresno | C20: CA | D20: Fresno | E20: 69 | F20: 64
A21: CA, Los Angeles | B21: Los Angeles | C21: CA | D21: Los Angeles / Orange / Ventura / Edwards AFB less the city of Santa Monica | E21: 74 | F21: 69
A22: CA, Mammoth Lakes | B22: Mammoth Lakes | C22: CA | D22: Mono | E22: 79 | F22: 74
A23: CA, Mill Valley / San Rafael / Novato | B23: Mill Valley / San Rafael / Novato | C23: CA | D23: Marin | E23: 74 | F23: 69
A24: CA, Monterey | B24: Monterey | C24: CA | D24: Monterey | E24: 74 | F24: 69
A25: CA, Napa | B25: Napa | C25: CA | D25: Napa | E25: 79 | F25: 74
A26: CA, Oakhurst | B26: Oakhurst | C26: CA | D26: Madera | E26: 69 | F26: 64
A27: CA, Oakland | B27: Oakland | C27: CA | D27: Alameda | E27: 74 | F27: 69
A28: CA, Palm Springs | B28: Palm Springs | C28: CA | D28: Riverside | E28: 69 | F28: 64
A29: CA, Point Arena / Gualala | B29: Point Arena / Gualala | C29: CA | D29: Mendocino | E29: 79 | F29: 74
A30: CA, Sacramento | B30: Sacramento | C30: CA | D30: Sacramento | E30: 69 | F30: 64
A31: CA, San Diego | B31: San Diego | C31: CA | D31: San Diego | E31: 74 | F31: 69
A32: =CONCATENATE(C32,", ",B32) -> CA, San Francisco | B32: San Francisco | C32: CA | D32: San Francisco | E32: 79 | F32: =E32-5 -> 74
A33: =CONCATENATE(C33,", ",B33) -> CA, San Luis Obispo | B33: San Luis Obispo | C33: CA | D33: San Luis Obispo | E33: 74 | F33: =E33-5 -> 69
A34: CA, San Mateo / Foster City / Belmont | B34: San Mateo / Foster City / Belmont | C34: CA | D34: San Mateo | E34: 74 | F34: 69
A35: CA, Santa Barbara | B35: Santa Barbara | C35: CA | D35: Santa Barbara | E35: 74 | F35: 69
A36: CA, Santa Cruz | B36: Santa Cruz | C36: CA | D36: Santa Cruz | E36: 69 | F36: 64
A37: CA, Santa Monica | B37: Santa Monica | C37: CA | D37: City limits of Santa Monica | E37: 79 | F37: 74
A38: CA, Santa Rosa | B38: Santa Rosa | C38: CA | D38: Sonoma | E38: 74 | F38: 69
A39: CA, South Lake Tahoe | B39: South Lake Tahoe | C39: CA | D39: El Dorado | E39: 74 | F39: 69
A40: CA, Stockton | B40: Stockton | C40: CA | D40: San Joaquin | E40: 74 | F40: 69
A41: CA, Sunnyvale / Palo Alto / San Jose | B41: Sunnyvale / Palo Alto / San Jose | C41: CA | D41: Santa Clara | E41: 74 | F41: 69
A42: CA, Tahoe City | B42: Tahoe City | C42: CA | D42: Placer | E42: 74 | F42: 69
A43: CA, Truckee | B43: Truckee | C43: CA | D43: Nevada | E43: 79 | F43: 74
A44: CA, Visalia | B44: Visalia | C44: CA | D44: Tulare | E44: 69 | F44: 64
A45: CA, West Sacramento / Davis | B45: West Sacramento / Davis | C45: CA | D45: Yolo | E45: 69 | F45: 64
A46: CA, Yosemite National Park | B46: Yosemite National Park | C46: CA | D46: Mariposa | E46: 79 | F46: 74
A47: =CONCATENATE(C47,", ",B47) -> CA, Other | B47: Other | C47: CA | D47: CA, Other | E47: 59 | F47: =E47-5 -> 54
A48: CO, Aspen | B48: Aspen | C48: CO | D48: Pitkin | E48: 79 | F48: 74
A49: CO, Boulder / Broomfield | B49: Boulder / Broomfield | C49: CO | D49: Boulder / Broomfield | E49: 69 | F49: 64
A50: CO, Colorado Springs | B50: Colorado Springs | C50: CO | D50: El Paso | E50: 69 | F50: 64
A51: CO, Cortez | B51: Cortez | C51: CO | D51: Montezuma | E51: 64 | F51: 59
A52: CO, Crested Butte / Gunnison | B52: Crested Butte / Gunnison | C52: CO | D52: Gunnison | E52: 74 | F52: 69
A53: CO, Denver / Aurora | B53: Denver / Aurora | C53: CO | D53: Denver / Adams / Arapahoe / Jefferson | E53: 79 | F53: 74
A54: CO, Douglas | B54: Douglas | C54: CO | D54: Douglas | E54: 69 | F54: 64
A55: CO, Durango | B55: Durango | C55: CO | D55: La Plata | E55: 74 | F55: 69
A56: CO, Fort Collins / Loveland | B56: Fort Collins / Loveland | C56: CO | D56: Larimer | E56: 69 | F56: 64
A57: CO, Grand Lake | B57: Grand Lake | C57: CO | D57: Grand | E57: 79 | F57: 74
A58: CO, Montrose | B58: Montrose | C58: CO | D58: Montrose | E58: 69 | F58: 64
A59: =CONCATENATE(C59,", ",B59) -> CO, Silverthorne / Breckenridge | B59: Silverthorne / Breckenridge | C59: CO | D59: Summit | E59: 79 | F59: 36
A60: CO, Steamboat Springs | B60: Steamboat Springs | C60: CO | D60: Routt | E60: 79 | F60: =E60-5 -> 74
A61: CO, Telluride | B61: Telluride | C61: CO | D61: San Miguel | E61: 79 | F61: 74
A62: CO, Vail | B62: Vail | C62: CO | D62: Eagle | E62: 79 | F62: 74
A63: =CONCATENATE(C63,", ",B63) -> CO, Other | B63: Other | C63: CO | D63: CO, Other | E63: 59 | F63: =E63-5 -> 54
A64: CT, Bridgeport / Danbury | B64: Bridgeport / Danbury | C64: CT | D64: Fairfield | E64: 69 | F64: 64
A65: CT, Cromwell / Old Saybrook | B65: Cromwell / Old Saybrook | C65: CT | D65: Middlesex | E65: 64 | F65: 59
A66: CT, Hartford | B66: Hartford | C66: CT | D66: Hartford | E66: 69 | F66: 64
A67: CT, New Haven | B67: New Haven | C67: CT | D67: New Haven | E67: 69 | F67: 64
A68: CT, New London / Groton | B68: New London / Groton | C68: CT | D68: New London | E68: 69 | F68: 64
A69: =CONCATENATE(C69,", ",B69) -> CT, Other | B69: Other | C69: CT | D69: CT, Other | E69: 59 | F69: =E69-5 -> 54
A70: DC, District of Columbia | B70: District of Columbia | C70: DC | D70: Washington DC (also the cities of Alexandria, Falls Church and Fairfax, and the counties of Arlington and Fairfax, in Virginia; and the counties of Montgomery and Prince George's in Maryland) | E70: 79 | F70: 74
A71: DE, Lewes | B71: Lewes | C71: DE | D71: Sussex | E71: 64 | F71: 59
A72: DE, Wilmington | B72: Wilmington | C72: DE | D72: New Castle | E72: 64 | F72: 59
A73: =CONCATENATE(C73,", ",B73) -> DE, Other | B73: Other | C73: DE | D73: DE, Other | E73: 59 | F73: =E73-5 -> 54
A74: FL, Boca Raton / Delray Beach / Jupiter | B74: Boca Raton / Delray Beach / Jupiter | C74: FL | D74: Palm Beach / Hendry | E74: 69 | F74: 64
A75: FL, Bradenton | B75: Bradenton | C75: FL | D75: Manatee | E75: 64 | F75: 59
A76: FL, Cocoa Beach | B76: Cocoa Beach | C76: FL | D76: Brevard | E76: 74 | F76: 69
A77: FL, Daytona Beach | B77: Daytona Beach | C77: FL | D77: Volusia | E77: 69 | F77: 64
A78: FL, Fort Lauderdale | B78: Fort Lauderdale | C78: FL | D78: Broward | E78: 69 | F78: 64
A79: FL, Fort Myers | B79: Fort Myers | C79: FL | D79: Lee | E79: 64 | F79: 59
A80: FL, Fort Walton Beach / De Funiak Springs | B80: Fort Walton Beach / De Funiak Springs | C80: FL | D80: Okaloosa / Walton | E80: 69 | F80: 64
A81: FL, Gulf Breeze | B81: Gulf Breeze | C81: FL | D81: Santa Rosa | E81: 59 | F81: 54
A82: FL, Key West | B82: Key West | C82: FL | D82: Monroe | E82: 69 | F82: 64
A83: =CONCATENATE(C83,", ",B83) -> FL, Miami | B83: Miami | C83: FL | D83: Miami-Dade | E83: 69 | F83: =E83-5 -> 64
A84: FL, Naples | B84: Naples | C84: FL | D84: Collier | E84: 69 | F84: 64
A85: FL, Orlando | B85: Orlando | C85: FL | D85: Orange | E85: 69 | F85: 64
A86: FL, Panama City | B86: Panama City | C86: FL | D86: Bay | E86: 64 | F86: 59
A87: FL, Pensacola | B87: Pensacola | C87: FL | D87: Escambia | E87: 64 | F87: 59
A88: FL, Punta Gorda | B88: Punta Gorda | C88: FL | D88: Charlotte | E88: 64 | F88: 59
A89: FL, Sarasota | B89: Sarasota | C89: FL | D89: Sarasota | E89: 69 | F89: 64
A90: FL, Sebring | B90: Sebring | C90: FL | D90: Highlands | E90: 64 | F90: 59
A91: FL, St. Augustine | B91: St. Augustine | C91: FL | D91: St. Johns | E91: 69 | F91: 64
A92: FL, Stuart | B92: Stuart | C92: FL | D92: Martin | E92: 69 | F92: 64
A93: FL, Tallahassee | B93: Tallahassee | C93: FL | D93: Leon | E93: 64 | F93: 59
A94: FL, Tampa / St. Petersburg | B94: Tampa / St. Petersburg | C94: FL | D94: Pinellas / Hillsborough | E94: 69 | F94: 64
A95: FL, Vero Beach | B95: Vero Beach | C95: FL | D95: Indian River | E95: 69 | F95: 64
A96: =CONCATENATE(C96,", ",B96) -> FL, Other | B96: Other | C96: FL | D96: FL, Other | E96: 59 | F96: =E96-5 -> 54
A97: GA, Athens | B97: Athens | C97: GA | D97: Clarke | E97: 50 | F97: =E97 -> 50
A98: GA, Atlanta | B98: Atlanta | C98: GA | D98: Fulton / Dekalb | E98: 50 | F98: =E98 -> 50
A99: GA, Augusta | B99: Augusta | C99: GA | D99: Richmond | E99: 50 | F99: 50
A100: =CONCATENATE(C100,", ",B100) -> GA, Other | B100: Other | C100: GA | D100: GA, Other | E100: 50 | F100: 50
A101: GA, Jekyll Island / Brunswick | B101: Jekyll Island / Brunswick | C101: GA | D101: Glynn | E101: 50 | F101: 50
A102: =CONCATENATE(C102,", ",B102) -> GA, Marietta | B102: Marietta | C102: GA | D102: Cobb | E102: 50 | F102: 50
A103: GA, Savannah | B103: Savannah | C103: GA | D103: Chatham | E103: 50 | F103: 50
A104: IA, Dallas | B104: Dallas | C104: IA | D104: Dallas | E104: 69 | F104: =E104 -> 69
A105: IA, Des Moines | B105: Des Moines | C105: IA | D105: Polk | E105: 64 | F105: 64
A106: =CONCATENATE(C106,", ",B106) -> IA, Other | B106: Other | C106: IA | D106: IA, Other | E106: 59 | F106: =E106-5 -> 54
A107: ID, Boise | B107: Boise | C107: ID | D107: Ada | E107: 74 | F107: 69
A108: ID, Coeur d'Alene | B108: Coeur d'Alene | C108: ID | D108: Kootenai | E108: 64 | F108: 59
A109: =CONCATENATE(C109,", ",B109) -> ID, Sun Valley / Ketchum | B109: Sun Valley / Ketchum | C109: ID | D109: Blaine / Elmore | E109: 74 | F109: =E109-5 -> 69
A110: =CONCATENATE(C110,", ",B110) -> ID, Other | B110: Other | C110: ID | D110: ID, Other | E110: 59 | F110: =E110-5 -> 54
A111: IL, Bolingbrook / Romeoville / Lemont | B111: Bolingbrook / Romeoville / Lemont | C111: IL | D111: Will | E111: 64 | F111: 59
A112: IL, Chicago | B112: Chicago | C112: IL | D112: Cook / Lake | E112: 79 | F112: 74
A113: IL, East St. Louis / O'Fallon / Fairview Heights | B113: East St. Louis / O'Fallon / Fairview Heights | C113: IL | D113: St. Clair | E113: 64 | F113: 59
A114: IL, Oak Brook Terrace | B114: Oak Brook Terrace | C114: IL | D114: DuPage | E114: 64 | F114: 59
A115: =CONCATENATE(C115,", ",B115) -> IL, Other | B115: Other | C115: IL | D115: IL, Other | E115: 59 | F115: =E115-5 -> 54
A116: IN, Bloomington | B116: Bloomington | C116: IN | D116: Monroe | E116: 64 | F116: 59
A117: IN, Ft. Wayne | B117: Ft. Wayne | C117: IN | D117: Allen | E117: 64 | F117: 59
A118: IN, Hammond / Munster / Merrillville | B118: Hammond / Munster / Merrillville | C118: IN | D118: Lake | E118: 64 | F118: 59
A119: IN, Indianapolis / Carmel | B119: Indianapolis / Carmel | C119: IN | D119: Marion / Hamilton | E119: 69 | F119: 64
A120: =CONCATENATE(C120,", ",B120) -> IN, Lafayette / West Lafayette | B120: Lafayette / West Lafayette | C120: IN | D120: Tippecanoe | E120: 64 | F120: =E120-5 -> 59
A121: =CONCATENATE(C121,", ",B121) -> IN, Other | B121: Other | C121: IN | D121: IN, Other | E121: 59 | F121: =E121-5 -> 54
A122: KS, Kansas City / Overland Park | B122: Kansas City / Overland Park | C122: KS | D122: Wyandotte / Johnson / Leavenworth | E122: 64 | F122: 59
A123: KS, Wichita | B123: Wichita | C123: KS | D123: Sedgwick | E123: 64 | F123: 59
A124: =CONCATENATE(C124,", ",B124) -> KS, Other | B124: Other | C124: KS | D124: KS, Other | E124: 59 | F124: =E124-5 -> 54
A125: KY, Boone | B125: Boone | C125: KY | D125: Boone | E125: 64 | F125: 59
A126: KY, Kenton | B126: Kenton | C126: KY | D126: Kenton | E126: 74 | F126: 69
A127: KY, Lexington | B127: Lexington | C127: KY | D127: Fayette | E127: 64 | F127: 59
A128: KY, Louisville | B128: Louisville | C128: KY | D128: Jefferson | E128: 64 | F128: 59
A129: =CONCATENATE(C129,", ",B129) -> KY, Other | B129: Other | C129: KY | D129: KY, Other | E129: 59 | F129: =E129-5 -> 54
A130: LA, Alexandria / Leesville / Natchitoches | B130: Alexandria / Leesville / Natchitoches | C130: LA | D130: Allen / Jefferson Davis / Natchitoches / Rapides / Vernon Parishes | E130: 64 | F130: 59
A131: LA, Baton Rouge | B131: Baton Rouge | C131: LA | D131: East Baton Rouge Parish | E131: 69 | F131: 64
A132: LA, New Orleans | B132: New Orleans | C132: LA | D132: Orleans / Jefferson Parishes | E132: 74 | F132: 69
A133: =CONCATENATE(C133,", ",B133) -> LA, Other | B133: Other | C133: LA | D133: LA, Other | E133: 59 | F133: =E133-5 -> 54
A134: MA, Andover | B134: Andover | C134: MA | D134: Essex | E134: 64 | F134: 59
A135: MA, Boston / Cambridge | B135: Boston / Cambridge | C135: MA | D135: Suffolk, city of Cambridge | E135: 79 | F135: 74
A136: MA, Burlington / Woburn | B136: Burlington / Woburn | C136: MA | D136: Middlesex less the city of Cambridge | E136: 69 | F136: 64
A137: MA, Falmouth | B137: Falmouth | C137: MA | D137: City limits of Falmouth | E137: 69 | F137: 64
A138: MA, Hyannis | B138: Hyannis | C138: MA | D138: Barnstable less the city of Falmouth | E138: 69 | F138: 64
A139: MA, Martha's Vineyard | B139: Martha's Vineyard | C139: MA | D139: Dukes | E139: 79 | F139: 74
A140: MA, Nantucket | B140: Nantucket | C140: MA | D140: Nantucket | E140: 79 | F140: 74
A141: MA, Northampton | B141: Northampton | C141: MA | D141: Hampshire | E141: 69 | F141: 64
A142: MA, Pittsfield | B142: Pittsfield | C142: MA | D142: Berkshire | E142: 64 | F142: 59
A143: MA, Plymouth / Taunton / New Bedford | B143: Plymouth / Taunton / New Bedford | C143: MA | D143: Plymouth / Bristol | E143: 69 | F143: 64
A144: MA, Quincy | B144: Quincy | C144: MA | D144: Norfolk | E144: 69 | F144: 64
A145: MA, Springfield | B145: Springfield | C145: MA | D145: Hampden | E145: 64 | F145: 59
A146: MA, Worcester | B146: Worcester | C146: MA | D146: Worcester | E146: 69 | F146: 64
A147: =CONCATENATE(C147,", ",B147) -> MA, Other | B147: Other | C147: MA | D147: MA, Other | E147: 59 | F147: =E147-5 -> 54
A148: MD, Aberdeen / Bel Air / Belcamp | B148: Aberdeen / Bel Air / Belcamp | C148: MD | D148: Harford | E148: 64 | F148: 59
A149: MD, Annapolis | B149: Annapolis | C149: MD | D149: Anne Arundel | E149: 69 | F149: 64
A150: MD, Baltimore City | B150: Baltimore City | C150: MD | D150: Baltimore City | E150: 69 | F150: 64
A151: MD, Baltimore County | B151: Baltimore County | C151: MD | D151: Baltimore | E151: 64 | F151: 59
A152: MD, Cambridge / St. Michaels | B152: Cambridge / St. Michaels | C152: MD | D152: Dorchester / Talbot | E152: 64 | F152: 59
A153: MD, Centreville | B153: Centreville | C153: MD | D153: Queen Anne | E153: 64 | F153: 59
A154: MD, Columbia | B154: Columbia | C154: MD | D154: Howard | E154: 69 | F154: 64
A155: MD, Frederick | B155: Frederick | C155: MD | D155: Frederick | E155: 64 | F155: 59
A156: MD, Ocean City | B156: Ocean City | C156: MD | D156: Worcester | E156: 69 | F156: 64
A157: =CONCATENATE(C157,", ",B157) -> MD, Other | B157: Other | C157: MD | D157: MD, Other | E157: 59 | F157: =E157-5 -> 54
A158: ME, Bar Harbor / Rockport | B158: Bar Harbor / Rockport | C158: ME | D158: Hancock / Knox | E158: 74 | F158: 69
A159: =CONCATENATE(C159,", ",B159) -> ME, Kennebunk / Kittery / Sanford | B159: Kennebunk / Kittery / Sanford | C159: ME | D159: York | E159: 69 | F159: =E159-5 -> 64
A160: ME, Portland | B160: Portland | C160: ME | D160: Cumberland / Sagadahoc | E160: 64 | F160: 59
A161: =CONCATENATE(C161,", ",B161) -> ME, Other | B161: Other | C161: ME | D161: ME, Other | E161: 59 | F161: =E161-5 -> 54
A162: MI, Ann Arbor | B162: Ann Arbor | C162: MI | D162: Washtenaw | E162: 69 | F162: 64
A163: MI, Detroit | B163: Detroit | C163: MI | D163: Wayne | E163: 64 | F163: 59
A164: MI, East Lansing / Lansing | B164: East Lansing / Lansing | C164: MI | D164: Ingham / Eaton | E164: 64 | F164: 59
A165: MI, Grand Rapids | B165: Grand Rapids | C165: MI | D165: Kent | E165: 64 | F165: 59
A166: MI, Holland | B166: Holland | C166: MI | D166: Ottawa | E166: 64 | F166: 59
A167: MI, Kalamazoo / Battle Creek | B167: Kalamazoo / Battle Creek | C167: MI | D167: Kalamazoo / Calhoun | E167: 64 | F167: 59
A168: MI, Mackinac Island | B168: Mackinac Island | C168: MI | D168: Mackinac | E168: 74 | F168: 69
A169: MI, Midland | B169: Midland | C169: MI | D169: Midland | E169: 59 | F169: 54
A170: MI, Muskegon | B170: Muskegon | C170: MI | D170: Muskegon | E170: 64 | F170: 59
A171: MI, Petoskey | B171: Petoskey | C171: MI | D171: Emmet | E171: 64 | F171: 59
A172: MI, Pontiac / Auburn Hills | B172: Pontiac / Auburn Hills | C172: MI | D172: Oakland | E172: 64 | F172: 59
A173: MI, South Haven | B173: South Haven | C173: MI | D173: Van Buren | E173: 64 | F173: 59
A174: MI, Traverse City | B174: Traverse City | C174: MI | D174: Grand Traverse | E174: 64 | F174: 59
A175: =CONCATENATE(C175,", ",B175) -> MI, Other | B175: Other | C175: MI | D175: MI, Other | E175: 59 | F175: =E175-5 -> 54
A176: MN, Duluth | B176: Duluth | C176: MN | D176: St. Louis | E176: 79 | F176: 74
A177: MN, Eagan / Burnsville / Mendota Heights | B177: Eagan / Burnsville / Mendota Heights | C177: MN | D177: Dakota | E177: 69 | F177: 64
A178: MN, Minneapolis / St. Paul | B178: Minneapolis / St. Paul | C178: MN | D178: Hennepin / Ramsey | E178: 79 | F178: 74
A179: MN, Rochester | B179: Rochester | C179: MN | D179: Olmsted | E179: 64 | F179: 59
A180: =CONCATENATE(C180,", ",B180) -> MN, Other | B180: Other | C180: MN | D180: MN, Other | E180: 59 | F180: =E180-5 -> 54
A181: MO, Kansas City | B181: Kansas City | C181: MO | D181: Jackson / Clay / Cass / Platte | E181: 64 | F181: 59
A182: MO, St. Louis | B182: St. Louis | C182: MO | D182: St. Louis / St. Louis City / St. Charles | E182: 64 | F182: 59
A183: =CONCATENATE(C183,", ",B183) -> MO, Other | B183: Other | C183: MO | D183: MO, Other | E183: 59 | F183: =E183-5 -> 54
A184: MS, Oxford | B184: Oxford | C184: MS | D184: Lafayette | E184: 64 | F184: 59
A185: MS, Southaven | B185: Southaven | C185: MS | D185: Desoto | E185: 59 | F185: 54
A186: MS, Starkville | B186: Starkville | C186: MS | D186: Oktibbeha | E186: 64 | F186: 59
A187: =CONCATENATE(C187,", ",B187) -> MS, Other | B187: Other | C187: MS | D187: MS, Other | E187: 59 | F187: =E187-5 -> 54
A188: MT, Big Sky / West Yellowstone/Gardiner | B188: Big Sky / West Yellowstone/Gardiner | C188: MT | D188: Gallatin/Park | E188: 79 | F188: 74
A189: MT, Helena | B189: Helena | C189: MT | D189: Lewis and Clark | E189: 64 | F189: 59
A190: MT, Kalispell/Whitefish | B190: Kalispell/Whitefish | C190: MT | D190: Flathead | E190: 64 | F190: 59
A191: MT, Missoula | B191: Missoula | C191: MT | D191: Missoula | E191: 69 | F191: 64
A192: =CONCATENATE(C192,", ",B192) -> MT, Other | B192: Other | C192: MT | D192: MT, Other | E192: 59 | F192: =E192-5 -> 54
A193: NC, Asheville | B193: Asheville | C193: NC | D193: Buncombe | E193: 64 | F193: 59
A194: NC, Atlantic Beach / Morehead City | B194: Atlantic Beach / Morehead City | C194: NC | D194: Carteret | E194: 64 | F194: 59
A195: NC, Chapel Hill | B195: Chapel Hill | C195: NC | D195: Orange | E195: 74 | F195: 69
A196: NC, Charlotte | B196: Charlotte | C196: NC | D196: Mecklenburg | E196: 69 | F196: 64
A197: NC, Durham | B197: Durham | C197: NC | D197: Durham | E197: 64 | F197: 59
A198: NC, Fayetteville | B198: Fayetteville | C198: NC | D198: Cumberland | E198: 64 | F198: 59
A199: =CONCATENATE(C199,", ",B199) -> NC, Greensboro | B199: Greensboro | C199: NC | D199: Guilford | E199: 64 | F199: =E199-5 -> 59
A200: NC, Kill Devil Hills | B200: Kill Devil Hills | C200: NC | D200: Dare | E200: 74 | F200: 69
... 170 more rows
